fUSD/lending_fUSD_20250101
["ID","MTS","AMOUNT","RATE_DAILY","PERIOD"]
[347400410,1735765835007,-500.0,0.00010958,2]
[347400411,1735765835016,-500.0,0.00010958,2]
[347400412,1735765835025,-2243.21,0.00010958,2]
[347400413,1735765835034,-500.0,0.00010958,2]
[347400414,1735765835043,-646.15,0.00010958,2]
[347400415,1735765835052,-500.0,0.00010958,2]
[347400416,1735765835061,-542.96,0.00010958,2]
[347400417,1735765835070,-1095.54,0.00010958,2]
[347400418,1735765835080,-500.0,0.00010958,2]
[347400419,1735765835089,-500.0,0.00010958,2]
[347400420,1735765835098,-949.61,0.00010958,2]
[347400421,1735765835106,-585.04,0.00010958,2]
[347400422,1735765835115,-1486.47,0.00010958,2]
[347400423,1735765835124,-1398.26,0.00010958,2]
[347400424,1735765835133,-636.85,0.00010958,2]
[347400425,1735765835142,-500.0,0.00010958,2]
[347400426,1735765835151,-500.0,0.00010958,2]
[347400427,1735765835160,-673.26,0.00010958,2]
[347400428,1735765835169,-964.08,0.00010958,2]
[347400429,1735765835178,-1564.04,0.00010958,2]
[347400430,1735765835187,-2750.36,0.00010958,2]
[347400431,1735765835196,-500.0,0.00010958,2]
[347400432,1735765835205,-1052.24,0.00010958,2]
[347400433,1735765835214,-500.0,0.00010958,2]
[347400434,1735765835223,-1027.66,0.00010958,2]
[347400435,1735765835232,-500.0,0.00010958,2]
[347400436,1735765835241,-3580.02,0.00010958,2]
[347400437,1735765835250,-561.58,0.00010958,2]
[347400438,1735765835258,-1111.26,0.00010958,2]
[347400439,1735765835268,-500.0,0.00010958,2]
[347400440,1735765835276,-500.0,0.00010958,2]
[347400441,1735765835286,-995.05,0.00010958,2]
[347400442,1735765835295,-500.0,0.00010958,2]
[347400443,1735765835304,-535.69,0.00010958,2]
[347400444,1735765835313,-500.0,0.00010958,2]
[347400445,1735765835322,-500.0,0.00010958,2]
[347400446,1735765835331,-500.0,0.00010958,2]
[347400447,1735765835340,-500.0,0.00010958,2]
[347400448,1735765835349,-5039.3,0.00010958,2]
[347400449,1735765835358,-500.0,0.00010958,2]
[347400450,1735765835367,-1219.31,0.00010958,2]
[347400451,1735765835377,-516.1,0.00010958,2]
[347400452,1735765835386,-500.0,0.00010958,2]
[347400453,1735765835395,-667.19,0.00010958,2]
[347400454,1735765835404,-500.0,0.00010958,2]
[347400455,1735765835413,-500.0,0.00010958,2]
[347400456,1735765835421,-500.0,0.00010958,2]
[347400457,1735765835431,-500.0,0.00010958,2]
[347400458,1735765835441,-781.02,0.00010958,2]
[347400459,1735765835450,-2082.58,0.00010958,2]
[347400460,1735765835459,-1884.41,0.00010958,2]
[347400461,1735765835468,-500.0,0.00010958,2]
[347400462,1735765835477,-1861.02,0.00010958,2]
[347400463,1735765835487,-818.62,0.00010958,2]
[347400464,1735765835496,-500.0,0.00010958,2]
[347400465,1735765835505,-500.0,0.00010958,2]
[347400466,1735765835514,-547.16,0.00010958,2]
[347400467,1735765835523,-500.0,0.00010958,2]
[347400468,1735765835532,-500.0,0.00010958,2]
[347400469,1735765835541,-1154.33,0.00010958,2]
[347400470,1735765835550,-915.59,0.00010958,2]
[347400471,1735765835559,-500.0,0.00010958,2]
[347400472,1735765835568,-500.0,0.00010958,2]
[347400473,1735765835577,-500.0,0.00010958,2]
[347400474,1735765835586,-1244.82,0.00010958,2]
[347400475,1735765835594,-726.93,0.00010958,2]
[347400476,1735765835603,-955.91,0.00010958,2]
[347400477,1735765835612,-1934.9,0.00010958,2]
[347400478,1735765835621,-500.0,0.00010958,2]
[347400479,1735765835630,-500.0,0.00010958,2]
[347400480,1735765835639,-500.0,0.00010958,2]
[347400481,1735765835647,-700.6,0.00010958,2]
[347400482,1735765835656,-500.0,0.00010958,2]
[347400483,1735765835667,-423.12699675,0.00010958,2]
[347400484,1735765835691,-76.87300325,0.00010958,2]
[347400485,1735765835701,-500.0,0.00010958,2]
[347400486,1735765835710,-500.0,0.00010958,2]
[347400487,1735765835722,-2479.18,0.00010958,2]
[347400488,1735765835731,-1338.86,0.00010958,2]
[347400489,1735765835742,-270.58270707,0.00010958,2]
[347400490,1735765835760,-1504.01729293,0.00010958,2]
[347400491,1735765835769,-500.0,0.00010958,2]
[347400492,1735765835779,-500.0,0.00010958,2]
[347400493,1735765835788,-873.69,0.00010958,2]
[347400494,1735765835797,-500.0,0.00010958,2]
[347400495,1735765835806,-706.82,0.00010958,2]
[347400496,1735765835817,-500.0,0.00010958,2]
[347400497,1735765835827,-500.0,0.00010958,2]
[347400498,1735765835836,-11533.14,0.00010958,2]
[347400499,1735765835845,-656.72,0.00010958,2]
[347400500,1735765835854,-1009.70181707,0.00010958,2]
[347400501,1735765835865,-436.70818293,0.00010958,2]
[347400502,1735765835874,-500.0,0.00010958,2]
[347400503,1735765835883,-180.71881079,0.00010958,2]
[347400504,1735765838061,-378.00513087,0.00010858,2]
[347400505,1735765838072,-1012.13738047,0.00010858,2]
[347400506,1735765838082,-1918.13875,0.00010858,2]
[347400507,1735765838113,-268.12099998,0.00010858,2]
[347400508,1735765838124,-3377.59773868,0.00010858,2]
[347400509,1735765838133,-319.28118921,0.00010958,2]
[347400510,1735765838142,-500.0,0.00010958,2]
[347400511,1735765838151,-500.0,0.00010958,2]
[347400512,1735765838160,-500.0,0.00010958,2]
[347400513,1735765838169,-968.13,0.00010958,2]
[347400514,1735765838178,-532.67,0.00010958,2]
[347400515,1735765838187,-1738.95,0.00010958,2]
[347400516,1735765838197,-500.0,0.00010958,2]
[347400517,1735765838205,-500.0,0.00010958,2]
[347400518,1735765838214,-1806.0,0.00010958,2]
[347400519,1735765838223,-500.0,0.00010958,2]
[347400520,1735765838232,-685.11,0.00010958,2]
[347400521,1735765838241,-500.0,0.00010958,2]
[347400522,1735765838250,-1295.94,0.00010958,2]
[347400523,1735765838259,-603.33,0.00010958,2]
[347400524,1735765838268,-918.17,0.00010958,2]
[347400525,1735765838277,-1123.323188,0.00010958,2]
[347400526,1735765838285,-899.6,0.00010958,2]
[347400527,1735765838294,-1307.88,0.00010958,2]
[347400528,1735765838303,-647.81,0.00010958,2]
[347400529,1735765838312,-500.0,0.00010958,2]
[347400530,1735765838321,-2644.02,0.00010958,2]
[347400531,1735765838330,-1599.27,0.00010958,2]
[347400532,1735765838339,-500.0,0.00010958,2]
[347400533,1735765838348,-56.82437742,0.00010958,2]
[347400534,1735765838361,-500.0,0.00010958,2]
[347400535,1735765838372,-778.02562258,0.00010958,2]
[347400536,1735765838381,-489.12085042,0.00010958,2]
[347400537,1735765838392,-10.87914958,0.00010958,2]
[347400538,1735765838401,-500.0,0.00010958,2]
[347400539,1735765838411,-459.81085042,0.00010958,2]
[347400540,1735765838445,-868.22914958,0.00010958,2]
[347400541,1735765838454,-1276.06,0.00010958,2]
[347400542,1735765838464,-500.0,0.00010958,2]
[347400543,1735765838473,-606.4,0.00010958,2]
[347400544,1735765838482,-500.0,0.00010958,2]
[347400545,1735765838491,-500.0,0.00010958,2]
[347400546,1735765838505,-1186.59,0.00010958,2]
[347400547,1735765838514,-794.36,0.00010958,2]
[347400548,1735765838524,-2370.23,0.00010958,2]
[347400549,1735765838533,-500.0,0.00010958,2]
[347400550,1735765838541,-1444.09,0.00010958,2]
[347400551,1735765838550,-952.98,0.00010958,2]
[347400552,1735765838559,-393.56363213,0.00010958,2]
[347400553,1735765838568,-1350.54,0.00010958,2]
[347400554,1735765838576,-500.0,0.00010958,2]
[347400555,1735765838585,-500.0,0.00010958,2]
[347400556,1735765838594,-500.0,0.00010958,2]
[347400557,1735765838603,-500.0,0.00010958,2]
[347400558,1735765838612,-500.0,0.00010958,2]
[347400559,1735765838621,-9061.42,0.00010958,2]
[347400560,1735765838630,-500.0,0.00010958,2]
[347400561,1735765838639,-1625.09,0.00010958,2]
[347400562,1735765838648,-500.0,0.00010958,2]
[347400563,1735765838657,-1589.498626,0.00010958,2]
[347400564,1735765838666,-500.0,0.00010958,2]
[347400565,1735765838674,-549.34,0.00010958,2]
[347400566,1735765838683,-500.0,0.00010958,2]
[347400567,1735765838693,-1429.57,0.00010958,2]
[347400568,1735765838702,-592.26511111,0.00010958,2]
[347400569,1735765838711,-500.0,0.00010958,2]
[347400570,1735765838721,-551.88,0.00010958,2]
[347400571,1735765838730,-1503.94,0.00010958,2]
[347400572,1735765838740,-1707.19,0.00010958,2]
[347400573,1735765838752,-5291.68,0.00010958,2]
[347400574,1735765838761,-500.0,0.00010958,2]
[347400575,1735765838770,-500.0,0.00010958,2]
[347400576,1735765838779,-749.38,0.00010958,2]
[347400577,1735765838789,-2470.92,0.00010958,2]
[347400578,1735765838798,-500.0,0.00010958,2]
[347400579,1735765838807,-1072.3,0.00010958,2]
[347400580,1735765838817,-839.84,0.00010958,2]
[347400581,1735765838826,-500.0,0.00010958,2]
[347400582,1735765838835,-500.0,0.00010958,2]
[347400583,1735765838844,-500.0,0.00010958,2]
[347400584,1735765838853,-500.0,0.00010958,2]
[347400585,1735765838861,-1748.69,0.00010958,2]
[347400586,1735765838870,-733.62,0.00010958,2]
[347400587,1735765838879,-1051.42,0.00010958,2]
[347400588,1735765838888,-500.0,0.00010958,2]
[347400589,1735765838897,-500.0,0.00010958,2]
[347400590,1735765838906,-500.0,0.00010958,2]
[347400591,1735765838915,-675.56,0.00010958,2]
[347400592,1735765838924,-1165.05,0.00010958,2]
[347400593,1735765838933,-500.0,0.00010958,2]
[347400594,1735765838942,-659.96,0.00010958,2]
[347400595,1735765838950,-500.0,0.00010958,2]
[347400596,1735765838959,-569.57,0.00010958,2]
[347400597,1735765838969,-500.0,0.00010958,2]
[347400598,1735765838978,-1547.05,0.00010958,2]
[347400599,1735765838986,-1125.22,0.00010958,2]
[347400600,1735765838995,-500.0,0.00010958,2]
[347400601,1735765839004,-156.13948592,0.00010958,2]
[347400602,1735765839013,-851.14,0.00010958,2]
[347400603,1735765839022,-1114.77,0.00010958,2]
[347400604,1735765839031,-413.07670726,0.00010958,2]
[347400605,1735765839045,-86.92329274,0.00010958,2]
[347400606,1735765839053,-500.0,0.00010958,2]
[347400607,1735765839062,-841.35,0.00010958,2]
[347400608,1735765839071,-500.0,0.00010958,2]
[347400609,1735765839080,-500.0,0.00010958,2]
[347400610,1735765839089,-331.31538091,0.00010958,2]
[347400611,1735765839098,-620.78,0.00010958,2]
[347400612,1735765839107,-500.0,0.00010958,2]
[347400613,1735765839116,-500.0,0.00010958,2]
[347400614,1735765839125,-1471.05,0.00010958,2]
[347400615,1735765839133,-1740.47,0.00010958,2]
[347400616,1735765839142,-500.0,0.00010958,2]
[347400617,1735765839151,-500.0,0.00010958,2]
[347400618,1735765839159,-287.87252635,0.00010958,2]
[347400619,1735765839170,-212.12747365,0.00010958,2]
[347400620,1735765839179,-409.86739548,0.00010958,2]
[347400621,1735765839190,-90.13260452,0.00010958,2]
[347400622,1735765839199,-607.08,0.00010958,2]
[347400623,1735765839210,-858.01,0.00010958,2]
[347400624,1735765839223,-500.0,0.00010958,2]
[347400625,1735765839232,-500.0,0.00010958,2]
[347400626,1735765839241,-715.74,0.00010958,2]
[347400627,1735765839250,-1738.93,0.00010958,2]
[347400628,1735765839259,-500.0,0.00010958,2]
[347400629,1735765839268,-500.0,0.00010958,2]
[347400630,1735765839277,-500.0,0.00010958,2]
[347400631,1735765839286,-603.51,0.00010958,2]
[347400632,1735765839295,-500.0,0.00010958,2]
[347400633,1735765839305,-500.0,0.00010958,2]
[347400634,1735765839314,-597.07500864,0.00010958,2]
[347400635,1735765839322,-1074.27,0.00010958,2]
[347400636,1735765839331,-1278.23,0.00010958,2]
[347400637,1735765839340,-500.0,0.00010958,2]
[347400638,1735765839349,-1229.24,0.00010958,2]
[347400639,1735765839358,-1057.18,0.00010958,2]
[347400640,1735765839367,-1784.11,0.00010958,2]
[347400641,1735765839376,-520.06,0.00010958,2]
[347400642,1735765839385,-717.18833284,0.00010958,2]
[347400643,1735765839397,-511.56166716,0.00010958,2]
[347400644,1735765839407,-500.0,0.00010958,2]
[347400645,1735765839415,-500.0,0.00010958,2]
[347400646,1735765839424,-179.04903284,0.00010958,2]
[347400648,1735765840129,-2495.89096716,0.00010958,2]
[347400649,1735765840139,-1834.45,0.00010958,2]
[347400650,1735765840148,-1038.5,0.00010958,2]
[347400651,1735765840157,-668.09,0.00010958,2]
[347400652,1735765840166,-776.67,0.00010958,2]
[347400653,1735765840175,-1059.69,0.00010958,2]
[347400654,1735765840184,-500.0,0.00010958,2]
[347400655,1735765840193,-500.0,0.00010958,2]
[347400656,1735765840202,-1278.54,0.00010958,2]
[347400657,1735765840211,-1831.06,0.00010958,2]
[347400658,1735765840221,-500.0,0.00010958,2]
[347400659,1735765840231,-4243.84646263,0.00010958,2]
[347400660,1735765840242,-1022.52353737,0.00010958,2]
[347400661,1735765840251,-1811.99,0.00010958,2]
[347400662,1735765840260,-567.93,0.00010958,2]
[347400663,1735765840269,-617.41,0.00010958,2]
[347400664,1735765840278,-1096.3,0.00010958,2]
[347400665,1735765840287,-1929.48,0.00010958,2]
[347400666,1735765840296,-10874.97,0.00010958,2]
[347400667,1735765840305,-500.0,0.00010958,2]
[347400668,1735765840314,-500.0,0.00010958,2]
[347400669,1735765840324,-454.40751426,0.00010958,2]
[347400670,1735765840333,-500.0,0.00010958,2]
[347400671,1735765840342,-1058.23,0.00010958,2]
[347400672,1735765840351,-515.39,0.00010958,2]
[347400673,1735765840360,-500.0,0.00010958,2]
[347400674,1735765840370,-1171.82,0.00010958,2]
[347400675,1735765840379,-940.39,0.00010958,2]
[347400676,1735765840387,-1164.11,0.00010958,2]
[347400677,1735765840396,-178.39991227,0.00010958,2]
[347400678,1735765841269,-475.1,0.00010958,2]
[347400679,1735765841281,-1113.19008773,0.00010958,2]
[347400680,1735765841290,-768.4,0.00010958,2]
[347400681,1735765841299,-316.97203842,0.00010958,2]
[347400682,1735765841310,-183.02796158,0.00010958,2]
[347400683,1735765841320,-500.0,0.00010958,2]
[347400684,1735765841329,-138.35767192,0.00010958,2]
[347400685,1735765841353,-1417.97232808,0.00010958,2]
[347400686,1735765841363,-979.25,0.00010958,2]
[347400687,1735765841372,-875.36,0.00010958,2]
[347400688,1735765841381,-2068.59,0.00010958,2]
[347400689,1735765841391,-1219.83,0.00010958,2]
[347400690,1735765841400,-500.0,0.00010958,2]
[347400691,1735765841410,-500.0,0.00010958,2]
[347400692,1735765841420,-500.0,0.00010958,2]
[347400693,1735765841430,-500.0,0.00010958,2]
[347400694,1735765841440,-500.0,0.00010958,2]
[347400695,1735765841449,-2363.85,0.00010958,2]
[347400696,1735765841458,-591.31,0.00010958,2]
[347400697,1735765841469,-675.35,0.00010958,2]
[347400698,1735765841478,-651.74,0.00010958,2]
[347400699,1735765841488,-500.0,0.00010958,2]
[347400700,1735765841497,-759.71,0.00010958,2]
[347400701,1735765841507,-500.0,0.00010958,2]
[347400702,1735765841516,-500.0,0.00010958,2]
[347400703,1735765841525,-1217.12,0.00010958,2]
[347400704,1735765841534,-4362.97,0.00010958,2]
[347400705,1735765841544,-946.21,0.00010958,2]
[347400706,1735765841554,-1373.87,0.00010958,2]
[347400707,1735765841564,-500.0,0.00010958,2]
[347400708,1735765841573,-101.47805732,0.00010958,2]
[347400709,1735765841592,-2429.4141106,0.00010958,2]
[347400710,1735765841603,-800.93783208,0.00010958,2]
[347400711,1735765841615,-4354.95,0.00010958,2]
[347400712,1735765841624,-500.0,0.00010958,2]
[347400713,1735765841633,-522.75,0.00010958,2]
[347400714,1735765841643,-7134.05,0.00010958,2]
[347400715,1735765841652,-500.0,0.00010958,2]
[347400716,1735765841662,-500.0,0.00010958,2]
[347400717,1735765841671,-500.0,0.00010958,2]
[347400718,1735765841681,-607.18,0.00010958,2]
[347400719,1735765841691,-1363.82,0.00010958,2]
[347400720,1735765841701,-1319.42,0.00010958,2]
[347400721,1735765841710,-500.0,0.00010958,2]
[347400722,1735765841721,-2180.76,0.00010958,2]
[347400723,1735765841731,-592.46,0.00010958,2]
[347400724,1735765841740,-500.0,0.00010958,2]
[347400725,1735765841754,-1808.09,0.00010958,2]
[347400726,1735765841763,-1084.44,0.00010958,2]
[347400727,1735765841772,-500.0,0.00010958,2]
[347400728,1735765841781,-500.0,0.00010958,2]
[347400729,1735765841793,-500.0,0.00010958,2]
[347400730,1735765841802,-3330.92,0.00010958,2]
[347400731,1735765841811,-500.0,0.00010958,2]
[347400732,1735765841822,-500.0,0.00010958,2]
[347400733,1735765841831,-586.43,0.00010958,2]
[347400734,1735765841840,-500.0,0.00010958,2]
[347400735,1735765841849,-1254.2,0.00010958,2]
[347400736,1735765841859,-1094.41,0.00010958,2]
[347400737,1735765841868,-500.0,0.00010958,2]
[347400738,1735765841877,-2825.07,0.00010958,2]
[347400739,1735765841887,-171.37244016,0.00010958,2]
[347400740,1735765841909,-2864.12755984,0.00010958,2]
[347400741,1735765841918,-1533.9,0.00010958,2]
[347400742,1735765841927,-500.0,0.00010958,2]
[347400743,1735765841937,-1355.76,0.00010958,2]
[347400744,1735765841947,-500.0,0.00010958,2]
[347400745,1735765841955,-7376.05,0.00010958,2]
[347400746,1735765841964,-500.0,0.00010958,2]
[347400747,1735765841975,-829.41,0.00010958,2]
[347400748,1735765841984,-500.0,0.00010958,2]
[347400749,1735765841994,-500.0,0.00010958,2]
[347400750,1735765842003,-500.0,0.00010958,2]
[347400751,1735765842013,-2151.95,0.00010958,2]
[347400752,1735765842022,-1126.0,0.00010958,2]
[347400753,1735765842031,-1686.4,0.00010958,2]
[347400754,1735765842040,-500.0,0.00010958,2]
[347400755,1735765842050,-500.0,0.00010958,2]
[347400756,1735765842059,-768.87,0.00010958,2]
[347400757,1735765842068,-500.0,0.00010958,2]
[347400758,1735765842078,-1642.55,0.00010958,2]
[347400759,1735765842087,-1739.49,0.00010958,2]
[347400760,1735765842097,-1279.07,0.00010958,2]
[347400761,1735765842107,-500.0,0.00010958,2]
[347400762,1735765842116,-653.19,0.00010958,2]
[347400763,1735765842125,-762.15,0.00010958,2]
[347400764,1735765842135,-2087.68155022,0.00010958,2]
[347400765,1735765842147,-27.33844978,0.00010958,2]
[347400766,1735765842156,-500.0,0.00010958,2]
[347400767,1735765842165,-505.8,0.00010958,2]
[347400768,1735765842174,-500.0,0.00010958,2]
[347400769,1735765842183,-765.06,0.00010958,2]
[347400770,1735765842193,-7587.68,0.00010958,2]
[347400771,1735765842202,-1194.99,0.00010958,2]
[347400772,1735765842212,-1649.03,0.00010958,2]
[347400773,1735765842222,-1572.32,0.00010958,2]
[347400774,1735765842231,-500.0,0.00010958,2]
[347400775,1735765842240,-1077.45,0.00010958,2]
[347400776,1735765842250,-788.7,0.00010958,2]
[347400777,1735765842259,-3607.49,0.00010958,2]
[347400778,1735765842268,-146.18188121,0.00010958,2]
[347400779,1735765842280,-992.24811879,0.00010958,2]
[347400780,1735765842289,-1361.23,0.00010958,2]
[347400781,1735765842298,-500.0,0.00010958,2]
[347400782,1735765842307,-500.0,0.00010958,2]
[347400783,1735765842317,-1805.55,0.00010958,2]
[347400784,1735765842327,-5789.84,0.00010958,2]
[347400785,1735765842336,-3565.67,0.00010958,2]
[347400786,1735765842345,-630.56,0.00010958,2]
[347400787,1735765842355,-1557.4,0.00010958,2]
[347400788,1735765842364,-782.76,0.00010958,2]
[347400789,1735765842373,-851.15,0.00010958,2]
[347400790,1735765842383,-500.0,0.00010958,2]
[347400791,1735765842392,-733.42,0.00010958,2]
[347400792,1735765842401,-528.37,0.00010958,2]
[347400793,1735765842411,-1287.03,0.00010958,2]
[347400794,1735765842420,-2184.63,0.00010958,2]
[347400795,1735765842430,-1711.99,0.00010958,2]
[347400796,1735765842439,-1094.24,0.00010958,2]
[347400797,1735765842449,-500.0,0.00010958,2]
[347400798,1735765842458,-500.0,0.00010958,2]
[347400799,1735765842469,-1459.79,0.00010958,2]
[347400800,1735765842479,-500.0,0.00010958,2]
[347400801,1735765842490,-1260.71,0.00010958,2]
[347400802,1735765842501,-500.0,0.00010958,2]
[347400803,1735765842510,-500.0,0.00010958,2]
[347400804,1735765842519,-1098.1,0.00010958,2]
[347400805,1735765842528,-560.77,0.00010958,2]
[347400806,1735765842538,-1665.01,0.00010958,2]
[347400807,1735765842547,-1897.8,0.00010958,2]
[347400808,1735765842556,-8882.91070113,0.00010958,2]
[347400809,1735765842631,-959.85,0.00010958,2]
[347400810,1735765842643,-1960.52,0.00010958,2]
[347400825,1735765843208,-10496.47929887,0.00010958,2]
[347400826,1735765843217,-500.0,0.00010958,2]
[347400827,1735765843227,-500.0,0.00010958,2]
[347400828,1735765843237,-3936.51,0.00010958,2]
[347400829,1735765843247,-500.0,0.00010958,2]
[347400830,1735765843256,-1253.79,0.00010958,2]
[347400831,1735765843266,-3723.24,0.00010958,2]
[347400832,1735765843276,-500.0,0.00010958,2]
[347400833,1735765843286,-500.0,0.00010958,2]
[347400834,1735765843295,-1922.37,0.00010958,2]
[347400835,1735765843304,-209.51449709,0.00010958,2]
[347400836,1735765843314,-778.89,0.00010958,2]
[347400837,1735765843323,-500.0,0.00010958,2]
[347400838,1735765843332,-1997.24,0.00010958,2]
[347400839,1735765843342,-166.56590614,0.00010958,2]
[347400840,1735765843354,-371.25409386,0.00010958,2]
[347400841,1735765843363,-118.03778349,0.00010958,2]
[347400842,1735765843375,-381.96221651,0.00010958,2]
[347400843,1735765843385,-1185.62,0.00010958,2]
[347400844,1735765843394,-1415.82,0.00010958,2]
[347400845,1735765843403,-1489.09,0.00010958,2]
[347400846,1735765843412,-1036.75,0.00010958,2]
[347400847,1735765843421,-500.0,0.00010958,2]
[347400848,1735765843430,-1771.04,0.00010958,2]
[347400849,1735765843440,-500.0,0.00010958,2]
[347400850,1735765843449,-1554.57,0.00010958,2]
[347400851,1735765843459,-641.56,0.00010958,2]
[347400852,1735765843468,-803.3,0.00010958,2]
[347400853,1735765843478,-814.1,0.00010958,2]
[347400854,1735765843487,-1686.77,0.00010958,2]
[347400855,1735765843496,-2942.46,0.00010958,2]
[347400856,1735765843506,-720.66,0.00010958,2]
[347400857,1735765843515,-550.0,0.00010958,2]
[347400858,1735765843524,-1080.51,0.00010958,2]
[347400859,1735765843533,-1655.87,0.00010958,2]
[347400861,1735765843542,-2089.6,0.00010958,2]
[347400863,1735765843551,-500.0,0.00010958,2]
[347400865,1735765843561,-11850.16,0.00010958,2]
[347400867,1735765843571,-726.81,0.00010958,2]
[347400869,1735765843580,-1244.93,0.00010958,2]
[347400871,1735765843589,-1556.26,0.00010958,2]
[347400873,1735765843598,-500.0,0.00010958,2]
[347400875,1735765843608,-564.74,0.00010958,2]
[347400876,1735765843617,-1089.79,0.00010958,2]
[347400877,1735765843626,-500.0,0.00010958,2]
[347400878,1735765843635,-1890.36,0.00010958,2]
[347400879,1735765843644,-571.82,0.00010958,2]
[347400880,1735765843653,-1654.14,0.00010958,2]
[347400881,1735765843662,-500.0,0.00010958,2]
[347400882,1735765843671,-2050.55,0.00010958,2]
[347400883,1735765843681,-1348.9,0.00010958,2]
[347400884,1735765843690,-1780.96,0.00010958,2]
[347400885,1735765843699,-500.0,0.00010958,2]
[347400886,1735765843709,-500.0,0.00010958,2]
[347400887,1735765843718,-500.0,0.00010958,2]
[347400888,1735765843727,-1457.54,0.00010958,2]
[347400889,1735765843737,-962.3,0.00010958,2]
[347400890,1735765843752,-500.0,0.00010958,2]
[347400891,1735765843763,-642.86,0.00010958,2]
[347400892,1735765843772,-3381.63,0.00010958,2]
[347400893,1735765843782,-500.0,0.00010958,2]
[347400894,1735765843791,-909.84,0.00010958,2]
[347400895,1735765843801,-1019.64191949,0.00010958,2]
[347400896,1735765843813,-110.35808051,0.00010958,2]
[347400897,1735765843823,-500.0,0.00010958,2]
[347400898,1735765843833,-500.0,0.00010958,2]
[347400899,1735765843842,-500.0,0.00010958,2]
[347400900,1735765843852,-937.55507228,0.00010958,2]
[347400901,1735765843863,-2851.06946176,0.00010958,2]
[347400902,1735765843880,-431.91546596,0.00010958,2]
[347400903,1735765843890,-500.0,0.00010958,2]
[347400904,1735765843899,-204.92918613,0.00010958,2]
[347400905,1735765843910,-295.07081387,0.00010958,2]
[347400906,1735765843919,-1538.19,0.00010958,2]
[347400907,1735765843929,-507.16,0.00010958,2]
[347400908,1735765843939,-574.01918613,0.00010958,2]
[347400909,1735765843951,-131.37081387,0.00010958,2]
[347400910,1735765843960,-873.85,0.00010958,2]
[347400911,1735765843970,-1.40548692,0.00010958,2]
[347400912,1735765843981,-352.72799642,0.00010958,2]
[347400913,1735765843992,-792.83061176,0.00010958,2]
[347400914,1735765844003,-49.1359049,0.00010958,2]
[347400915,1735765844013,-500.0,0.00010958,2]
[347400916,1735765844022,-409.67557623,0.00010958,2]
[347400917,1735765844033,-701.666667,0.00010958,2]
[347400919,1735765846226,-990.93775677,0.00010958,2]
[347400920,1735765846235,-678.69,0.00010958,2]
[347400921,1735765846245,-500.0,0.00010958,2]
[347400922,1735765846255,-635.43,0.00010958,2]
[347400923,1735765846265,-4012.59,0.00010958,2]
[347400924,1735765846275,-500.0,0.00010958,2]
[347400925,1735765846284,-2072.82,0.00010958,2]
[347400926,1735765846293,-1957.35,0.00010958,2]
[347400927,1735765846303,-500.0,0.00010958,2]
[347400928,1735765846312,-1227.85,0.00010958,2]
[347400929,1735765846322,-3715.57,0.00010958,2]
[347400930,1735765846331,-154.108446,0.00010958,2]
[347400931,1735765846341,-3154.7,0.00010958,2]
[347400932,1735765846351,-1717.55,0.00010958,2]
[347400933,1735765846361,-500.0,0.00010958,2]